Workbook

Sheet 12°C
A1: 413 | C1: taux de C02 en ppm pour une eau de mer à 12 °c
A2: 416 | I2: borne sup
A3: 413 | I3: de l'intervalle | J3: intervalle | K3: fréquence
A4: 412 | F4: population | G4: 300 | I4: 400 | J4: ]0;400] | K4: =FREQUENCY(A1:A300,I4:I12) -> 34
A5: 417 | F5: min | G5: =MIN(A1:A300) -> 400 | I5: 405 | J5: ]400;405] | K5: 52
A6: 427 | E6: 10 | F6: max | G6: =MAX(A1:A300) -> 439 | I6: 410 | J6: ]405;410] | K6: 81
A7: 417 | C7: liste générée | D7: 400 | F7: moyenne | G7: =AVERAGE(A1:A300) -> 410.3533333 | I7: 415 | J7: ]410;415] | K7: 59
A8: 418 | D8: 410 | F8: écart type | G8: =STDEV(A1:A300) -> 7.50931343 | I8: 420 | J8: ]415;420] | K8: 48
A9: 415 | D9: 411 | F9: incertitude | G9: =G8/300^0.5 -> 0.433550413 | I9: 425 | J9: ]420;425] | K9: 19
A10: 415 | D10: 419 | I10: 430 | J10: ]425;430] | K10: 3
A11: 431 | D11: 402 | F11: échantillon | G11: 30 | I11: 435 | J11: ]430;435] | K11: 3
A12: 420 | D12: 411 | F12: min | G12: =MIN(D7:D36) -> 400 | I12: 440 | J12: ]435;440] | K12: 1
A13: 431 | D13: 408 | F13: max | G13: =MAX(D7:D36) -> 430
A14: 439 | D14: 405 | F14: moyenne me | G14: =AVERAGE(D7:D36) -> 408.8666667
A15: 433 | D15: 409 | F15: écart type σe | G15: =STDEV(D7:D36) -> 7.195464727
A16: 424 | D16: 400
A17: 409 | D17: 413 | F17: estimation | G17: ponctuelle | L17: intervalle de confiance | M17: confiance à 95%du taux moyen de CO2 en ppm donné par le capteur pour 30 valeurs
A18: 408 | D18: 415 | F18: écart type
A19: 410 | D19: 413 | F19: population | G19: =G15*30^0.5/29^0.5 -> 7.318473035 | M19: [ | N19: =G7-1.96*G8/30^0.5 -> 407.66616 | O19: ; | P19: =G7+1.96*G8/30^0.5 -> 413.0405066 | Q19: ]
A20: 416 | D20: 402
A21: 415 | D21: 400
A22: 412 | D22: 417
A23: 420 | D23: 404
A24: 408 | D24: 402
A25: 419 | D25: 404
A26: 424 | D26: 419
A27: 405 | D27: 408
A28: 418 | D28: 430
A29: 408 | D29: 407
A30: 415 | D30: 413
A31: 416 | D31: 408
A32: 413 | D32: 417
A33: 416 | D33: 401
A34: 411 | D34: 405
A35: 415 | D35: 400
A36: 422 | D36: 413
A37: 415
A38: 417
A39: 409
A40: 409
A41: 417
A42: 412
A43: 417
A44: 411
A45: 405
A46: 419
A47: 407
A48: 414
A49: 420
A50: 412
A51: 413
A52: 415
A53: 407
A54: 407
A55: 408
A56: 413
A57: 419
A58: 420
A59: 419
A60: 418
A61: 424
A62: 417
A63: 415
A64: 405
A65: 419
A66: 424
A67: 416
A68: 413
A69: 413
A70: 404
A71: 404
A72: 407
A73: 406
A74: 400
A75: 422
A76: 420
A77: 404
A78: 407
A79: 420
A80: 425
A81: 409
A82: 407
A83: 411
A84: 410
A85: 400
A86: 400
A87: 404
A88: 400
A89: 409
A90: 407
A91: 403
A92: 400
A93: 410
A94: 411
A95: 412
A96: 400
A97: 401
A98: 404
A99: 405
A100: 400
A101: 409
A102: 406
A103: 406
A104: 404
A105: 400
A106: 409
A107: 404
A108: 421
A109: 407
A110: 410
A111: 408
A112: 414
A113: 413
A114: 402
A115: 404
A116: 405
A117: 400
A118: 402
A119: 404
A120: 407
A121: 414
A122: 406
A123: 411
A124: 409
A125: 415
A126: 415
A127: 411
A128: 403
A129: 407
A130: 406
A131: 401
A132: 406
A133: 404
A134: 401
A135: 408
A136: 410
A137: 410
A138: 400
A139: 411
A140: 400
A141: 416
A142: 424
A143: 408
A144: 405
A145: 410
A146: 418
A147: 411
A148: 420
A149: 402
A150: 403
A151: 424
A152: 417
A153: 400
A154: 413
A155: 403
A156: 409
A157: 408
A158: 408
A159: 406
A160: 404
A161: 401
A162: 416
A163: 409
A164: 406
A165: 410
A166: 407
A167: 413
A168: 404
A169: 407
A170: 417
A171: 415
A172: 417
A173: 410
A174: 424
A175: 419
A176: 415
A177: 410
A178: 414
A179: 423
A180: 412
A181: 409
A182: 415
A183: 406
A184: 407
A185: 408
A186: 401
A187: 410
A188: 400
A189: 402
A190: 405
A191: 401
A192: 417
A193: 401
A194: 422
A195: 403
A196: 413
A197: 414
A198: 409
A199: 410
A200: 416
... 100 more rows

Sheet 15°C
A1: 441 | C1: taux de C02 en ppm pour une eau de mer à 15 °c
A2: 441 | I2: borne sup
A3: 447 | I3: de l'intervalle | J3: intervalle | K3: fréquence
A4: 451 | F4: population | G4: 300 | I4: 420 | J4: ]0;420] | K4: =FREQUENCY(A1:A300,I4:I15) -> 1
A5: 443 | F5: min | G5: =MIN(A1:A300) -> 420 | I5: 425 | J5: ]420;425] | K5: 16
A6: 447 | E6: 10 | F6: max | G6: =MAX(A1:A300) -> 474 | I6: 430 | J6: ]425;430] | K6: 20
A7: 450 | C7: liste générée | D7: 450 | F7: moyenne | G7: =AVERAGE(A1:A300) -> 444 | I7: 435 | J7: ]430;435] | K7: 30
A8: 453 | D8: 438 | F8: écart type | G8: =STDEV(A1:A300) -> 11.55762066 | I8: 440 | J8: ]435;440] | K8: 55
A9: 449 | D9: 447 | F9: incertitude | G9: =G8/300^0.5 -> 0.6672795399 | I9: 445 | J9: ]440;445] | K9: 55
A10: 442 | D10: 442 | I10: 450 | J10: ]445;450] | K10: 40
A11: 456 | D11: 463 | F11: échantillon | G11: 30 | I11: 455 | J11: ]450;455] | K11: 28
A12: 442 | D12: 424 | F12: min | G12: =MIN(D7:D36) -> 424 | I12: 460 | J12: ]455;460] | K12: 26
A13: 447 | D13: 463 | F13: max | G13: =MAX(D7:D36) -> 463 | I13: 465 | J13: ]460;465] | K13: 16
A14: 456 | D14: 427 | F14: moyenne me | G14: =AVERAGE(D7:D36) -> 443.8333333 | I14: 470 | J14: ]465:470] | K14: 4
A15: 443 | D15: 446 | F15: écart type σe | G15: =STDEV(D7:D36) -> 10.20170146 | I15: 475 | J15: ]470;475] | K15: 9
A16: 445 | D16: 440
A17: 461 | D17: 443 | F17: estimation | G17: ponctuelle
A18: 442 | D18: 441 | F18: ecart-type
A19: 438 | D19: 443 | F19: population | G19: =G15*(30^0.5/29^0.5) -> 10.37610215 | M19: intervalle de confiance | N19: confiance à 95%du taux moyen de CO2 en ppm donné par le capteur sur 30 valeurs
A20: 434 | D20: 437
A21: 441 | D21: 439 | M21: [ | N21: =G7-1.96*G8/30^0.5 -> 439.8641586 | O21: ; | P21: =G7+1.96*G8/30^0.5 -> 448.1358414 | Q21: ]
A22: 441 | D22: 463
A23: 443 | D23: 449
A24: 443 | D24: 447
A25: 447 | D25: 449
A26: 442 | D26: 439
A27: 444 | D27: 434
A28: 449 | D28: 426
A29: 442 | D29: 459
A30: 440 | D30: 449
A31: 445 | D31: 431
A32: 457 | D32: 447
A33: 445 | D33: 440
A34: 453 | D34: 443
A35: 448 | D35: 454
A36: 444 | D36: 442
A37: 439
A38: 454
A39: 450
A40: 443
A41: 441
A42: 447
A43: 434
A44: 434
A45: 440
A46: 445
A47: 431
A48: 436
A49: 441
A50: 432
A51: 437
A52: 463
A53: 460
A54: 469
A55: 453
A56: 458
A57: 463
A58: 449
A59: 428
A60: 430
A61: 425
A62: 420
A63: 430
A64: 430
A65: 440
A66: 451
A67: 463
A68: 471
A69: 474
A70: 473
A71: 464
A72: 472
A73: 461
A74: 471
A75: 471
A76: 468
A77: 473
A78: 473
A79: 463
A80: 461
A81: 442
A82: 435
A83: 439
A84: 434
A85: 425
A86: 437
A87: 440
A88: 444
A89: 424
A90: 438
A91: 438
A92: 446
A93: 442
A94: 438
A95: 424
A96: 430
A97: 431
A98: 428
A99: 421
A100: 433
A101: 435
A102: 438
A103: 426
A104: 436
A105: 429
A106: 429
A107: 436
A108: 424
A109: 431
A110: 439
A111: 429
A112: 424
A113: 442
A114: 428
A115: 436
A116: 451
A117: 433
A118: 442
A119: 449
A120: 433
A121: 438
A122: 438
A123: 444
A124: 446
A125: 447
A126: 438
A127: 436
A128: 433
A129: 433
A130: 422
A131: 426
A132: 425
A133: 423
A134: 435
A135: 435
A136: 431
A137: 426
A138: 435
A139: 435
A140: 440
A141: 444
A142: 438
A143: 425
A144: 451
A145: 451
A146: 435
A147: 432
A148: 427
A149: 424
A150: 445
A151: 447
A152: 440
A153: 424
A154: 430
A155: 438
A156: 454
A157: 438
A158: 452
A159: 457
A160: 450
A161: 448
A162: 450
A163: 451
A164: 442
A165: 438
A166: 450
A167: 437
A168: 438
A169: 449
A170: 442
A171: 446
A172: 445
A173: 437
A174: 445
A175: 455
A176: 451
A177: 426
A178: 438
A179: 427
A180: 435
A181: 423
A182: 431
A183: 440
A184: 457
A185: 460
A186: 460
A187: 460
A188: 456
A189: 452
A190: 440
A191: 442
A192: 438
A193: 442
A194: 449
A195: 456
A196: 445
A197: 456
A198: 454
A199: 454
A200: 466
... 100 more rows

Sheet 18°C
A1: 607 | C1: taux de C02 en ppm pour une eau de mer à 18 °c
A2: 588 | I2: borne sup
A3: 580 | I3: de l'intervalle | J3: intervalle | K3: fréquence
A4: 606 | F4: population | G4: 300 | I4: 560 | J4: ]0;560] | K4: =FREQUENCY(A1:A300,I4:I15) -> 6
A5: 589 | F5: min | G5: =MIN(A1:A300) -> 479 | I5: 565 | J5: ]560;565] | K5: 24
A6: 594 | E6: 10 | F6: max | G6: =MAX(A1:A300) -> 611 | I6: 570 | J6: ]565;570] | K6: 34
A7: 595 | C7: liste générée | D7: 580 | F7: moyenne | G7: =AVERAGE(A1:A300) -> 581.5266667 | I7: 575 | J7: ]570;575] | K7: 44
A8: 479 | D8: 589 | F8: écart type | G8: =STDEV(A1:A300) -> 14.018715 | I8: 580 | J8: ]575;580] | K8: 46
A9: 580 | D9: 598 | F9: incertude | G9: =G8/300^0.5 -> 0.8093708876 | I9: 585 | J9: ]580;585] | K9: 40
A10: 599 | D10: 561 | I10: 590 | J10: ]585;590] | K10: 28
A11: 595 | D11: 592 | F11: échantillon | G11: 30 | I11: 595 | J11: ]590;595] | K11: 27
A12: 608 | D12: 579 | F12: min | G12: =MIN(D7:D36) -> 561 | I12: 600 | J12: ]595;600] | K12: 21
A13: 571 | D13: 574 | F13: max | G13: =MAX(D7:D36) -> 605 | I13: 605 | J13: ]600;605] | K13: 20
A14: 599 | D14: 590 | F14: moyenne me | G14: =AVERAGE(D7:D36) -> 582.2333333 | I14: 610 | J14: ]605;610] | K14: 9
A15: 598 | D15: 589 | F15: écart type σe | G15: =STDEV(D7:D36) -> 12.22683125 | I15: 615 | J15: ]610;615] | K15: 1
A16: 609 | D16: 595
A17: 580 | D17: 580 | F17: estimation | G17: ponctuelle
A18: 599 | D18: 592 | F18: écart type
A19: 595 | D19: 593 | F19: population | G19: =G15*30^0.5/29^0.5 -> 12.43585205
A20: 595 | D20: 584 | M20: intervalle de confiance | N20: confiance à 95%du taux moyen de CO2 en ppm donné par le capteur
A21: 580 | D21: 602
A22: 595 | D22: 567
A23: 593 | D23: 569 | M23: [ | N23: =G7-1.96*G8/30^0.5 -> 576.5101339 | O23: ; | P23: =G7+1.96*G8/30^0.5 -> 586.5431994 | Q23: ]
A24: 609 | D24: 571
A25: 597 | D25: 580
A26: 595 | D26: 595
A27: 593 | D27: 571
A28: 592 | D28: 569
A29: 593 | D29: 567
A30: 593 | D30: 572
A31: 595 | D31: 580
A32: 600 | D32: 573
A33: 595 | D33: 601
A34: 593 | D34: 567
A35: 595 | D35: 582
A36: 592 | D36: 605
A37: 609
A38: 609
A39: 603
A40: 607
A41: 611
A42: 592
A43: 589
A44: 588
A45: 579
A46: 590
A47: 585
A48: 591
A49: 585
A50: 587
A51: 599
A52: 585
A53: 584
A54: 584
A55: 581
A56: 578
A57: 582
A58: 585
A59: 583
A60: 580
A61: 589
A62: 590
A63: 570
A64: 580
A65: 583
A66: 580
A67: 581
A68: 586
A69: 580
A70: 578
A71: 580
A72: 582
A73: 580
A74: 570
A75: 580
A76: 580
A77: 583
A78: 579
A79: 574
A80: 583
A81: 583
A82: 573
A83: 574
A84: 576
A85: 578
A86: 573
A87: 573
A88: 571
A89: 574
A90: 572
A91: 572
A92: 561
A93: 583
A94: 565
A95: 581
A96: 582
A97: 573
A98: 579
A99: 577
A100: 581
A101: 583
A102: 581
A103: 582
A104: 581
A105: 575
A106: 572
A107: 575
A108: 584
A109: 581
A110: 581
A111: 561
A112: 563
A113: 577
A114: 560
A115: 579
A116: 569
A117: 570
A118: 589
A119: 584
A120: 578
A121: 577
A122: 561
A123: 561
A124: 589
A125: 569
A126: 561
A127: 564
A128: 601
A129: 588
A130: 600
A131: 580
A132: 600
A133: 581
A134: 601
A135: 578
A136: 598
A137: 599
A138: 601
A139: 567
A140: 598
A141: 600
A142: 586
A143: 597
A144: 576
A145: 599
A146: 595
A147: 595
A148: 604
A149: 603
A150: 602
A151: 601
A152: 597
A153: 605
A154: 605
A155: 603
A156: 593
A157: 593
A158: 606
A159: 600
A160: 600
A161: 601
A162: 595
A163: 600
A164: 578
A165: 601
A166: 602
A167: 586
A168: 601
A169: 592
A170: 589
A171: 588
A172: 579
A173: 590
A174: 585
A175: 591
A176: 585
A177: 587
A178: 599
A179: 580
A180: 584
A181: 580
A182: 580
A183: 578
A184: 582
A185: 575
A186: 563
A187: 571
A188: 569
A189: 563
A190: 570
A191: 569
A192: 575
A193: 573
A194: 573
A195: 586
A196: 573
A197: 567
A198: 575
A199: 579
A200: 578
... 100 more rows

Sheet 20°C
A1: 705 | C1: taux de C02 en ppm pour une eau de mer à 20 °c
A2: 707 | I2: borne sup
A3: 701 | I3: de l'intervalle | J3: intervalle | K3: fréquence
A4: 689 | F4: population | G4: 300 | I4: 665 | J4: ]0;665] | K4: =FREQUENCY(A1:A300,I4:I13) -> 2
A5: 705 | F5: min | G5: =MIN(A1:A300) -> 665 | I5: 670 | J5: ]665;670] | K5: 31
A6: 694 | E6: 10 | F6: max | G6: =MAX(A1:A300) -> 707 | I6: 675 | J6: ]670;675] | K6: 90
A7: 690 | C7: liste générée | D7: 684 | F7: moyenne | G7: =AVERAGE(A1:A300) -> 678.9033333 | I7: 680 | J7: ]675;680] | K7: 83
A8: 687 | D8: 673 | F8: écart type | G8: =STDEV(A1:A300) -> 8.27459275 | I8: 685 | J8: ]680;685] | K8: 39
A9: 683 | D9: 680 | F9: incertitude | G9: =G8/300^0.5 -> 0.4777338351 | I9: 690 | J9: ]685;690] | K9: 34
A10: 676 | D10: 672 | I10: 695 | J10: ]690;695] | K10: 6
A11: 699 | D11: 675 | F11: échantillon | G11: 30 | I11: 700 | J11: ]695;700] | K11: 8
A12: 673 | D12: 689 | F12: min | G12: =MIN(D7:D36) -> 666 | I12: 705 | J12: ]700;705] | K12: 6
A13: 683 | D13: 687 | F13: max | G13: =MAX(D7:D36) -> 689 | I13: 710 | J13: }705;710] | K13: 1
A14: 676 | D14: 667 | F14: moyenne me | G14: =AVERAGE(D7:D36) -> 676.5333333
A15: 671 | D15: 676 | F15: écart type σe | G15: =STDEV(D7:D36) -> 6.780974059
A16: 678 | D16: 675
A17: 678 | D17: 666 | F17: estimation | G17: ponctuelle
A18: 671 | D18: 676 | F18: écart type | L18: intervalle de confiance | M18: confiance à 95%du taux moyen de CO2 en ppm donné par le capteur
A19: 673 | D19: 671 | F19: population | G19: =G15*30^0.5/29^0.5 -> 6.896896543
A20: 673 | D20: 684
A21: 674 | D21: 667 | L21: [ | M21: =G7-1.96*G8/30^0.5 -> 675.9423083 | N21: ; | O21: =G7+1.96*G8/30^0.5 -> 681.8643583 | P21: ]
A22: 674 | D22: 671
A23: 683 | D23: 683
A24: 690 | D24: 689
A25: 670 | D25: 671
A26: 670 | D26: 675
A27: 672 | D27: 680
A28: 684 | D28: 679
A29: 670 | D29: 678
A30: 678 | D30: 679
A31: 675 | D31: 674
A32: 678 | D32: 674
A33: 678 | D33: 667
A34: 676 | D34: 671
A35: 675 | D35: 674
A36: 678 | D36: 689
A37: 678
A38: 679
A39: 685
A40: 674
A41: 676
A42: 679
A43: 679
A44: 675
A45: 675
A46: 671
A47: 678
A48: 679
A49: 677
A50: 678
A51: 674
A52: 678
A53: 672
A54: 687
A55: 672
A56: 671
A57: 687
A58: 674
A59: 675
A60: 673
A61: 689
A62: 689
A63: 672
A64: 679
A65: 679
A66: 673
A67: 685
A68: 675
A69: 676
A70: 685
A71: 679
A72: 690
A73: 679
A74: 687
A75: 685
A76: 671
A77: 670
A78: 681
A79: 684
A80: 679
A81: 687
A82: 674
A83: 679
A84: 678
A85: 673
A86: 676
A87: 695
A88: 671
A89: 693
A90: 667
A91: 665
A92: 667
A93: 669
A94: 671
A95: 666
A96: 667
A97: 678
A98: 689
A99: 685
A100: 667
A101: 668
A102: 671
A103: 689
A104: 683
A105: 672
A106: 680
A107: 683
A108: 678
A109: 674
A110: 679
A111: 685
A112: 674
A113: 675
A114: 684
A115: 689
A116: 670
A117: 671
A118: 666
A119: 667
A120: 678
A121: 689
A122: 685
A123: 667
A124: 668
A125: 671
A126: 689
A127: 683
A128: 672
A129: 680
A130: 683
A131: 678
A132: 700
A133: 694
A134: 698
A135: 684
A136: 674
A137: 675
A138: 680
A139: 679
A140: 672
A141: 684
A142: 689
A143: 674
A144: 683
A145: 690
A146: 670
A147: 670
A148: 672
A149: 684
A150: 670
A151: 678
A152: 675
A153: 678
A154: 678
A155: 676
A156: 675
A157: 678
A158: 678
A159: 679
A160: 685
A161: 674
A162: 676
A163: 679
A164: 679
A165: 675
A166: 675
A167: 671
A168: 678
A169: 679
A170: 677
A171: 678
A172: 674
A173: 678
A174: 672
A175: 687
A176: 672
A177: 671
A178: 687
A179: 674
A180: 675
A181: 673
A182: 682
A183: 690
A184: 698
A185: 700
A186: 689
A187: 678
A188: 699
A189: 700
A190: 700
A191: 678
A192: 689
A193: 674
A194: 681
A195: 675
A196: 704
A197: 703
A198: 681
A199: 701
A200: 678
... 100 more rows

Sheet 24°C
A1: 793 | C1: taux de C02 en ppm pour une eau de mer à 24 °c
A2: 794 | I2: borne sup
A3: 806 | I3: de l'intervalle | J3: intervalle | K3: fréquence
A4: 807 | F4: population | G4: 300 | I4: 780 | J4: ]0;780] | K4: =FREQUENCY(A1:A300,I4:I12) -> 6
A5: 805 | F5: min | G5: =MIN(A1:A300) -> 779 | I5: 785 | J5: ]780;785] | K5: 4
A6: 806 | E6: 10 | F6: max | G6: =MAX(A1:A300) -> 820 | I6: 790 | J6: ]785;790] | K6: 14
A7: 806 | C7: liste générée | D7: 803 | F7: moyenne | G7: =AVERAGE(A1:A300) -> 803.0501672 | I7: 795 | J7: ]790;795] | K7: 28
A8: 806 | D8: 799 | F8: écart type | G8: =STDEV(A1:A300) -> 8.680041036 | I8: 800 | J8: ]795;800] | K8: 61
A9: 794 | D9: 804 | F9: incertitude | G9: =G8/300^0.5 -> 0.5011424029 | I9: 805 | J9: ]800;805] | K9: 62
A10: 807 | D10: 794 | I10: 810 | J10: ]805;810] | K10: 58
A11: 793 | D11: 816 | F11: échantillon | G11: 30 | I11: 815 | J11: ]810;815] | K11: 50
A12: 807 | D12: 795 | F12: min | G12: =MIN(D7:D36) -> 790 | I12: 820 | J12: ]815;820] | K12: 16
A13: 806 | D13: 792 | F13: max | G13: =MAX(D7:D36) -> 816
A14: 808 | D14: 799 | F14: moyenne me | G14: =AVERAGE(D7:D36) -> 802.8965517
A15: 797 | D15: 802 | F15: écart type σe | G15: =STDEV(D7:D36) -> 7.546734524
A16: 804 | D16: 798
A17: 795 | D17: 790 | F17: estimation | G17: ponctuelle | L17: intervalle de confiance | M17: confiance à 95%du taux moyen de CO2 en ppm donné par le capteur
A18: 790 | D18: 806 | F18: écart type
A19: 796 | D19: 813 | F19: population | G19: =G15*30^0.5/29^0.5 -> 7.675747878
A20: 791 | D20: 806 | L20: [ | M20: =G7-1.96*G8/30^0.5 -> 799.9440544 | N20: ; | O20: =G7+1.96*G8/30^0.5 -> 806.15628 | P20: ]
A21: 791 | D21: 807
A22: 793 | D22: 814
A23: 791 | D23: 797
A24: 792 | D24: 798
A25: 797 | D25: 793
A26: 803 | D26: 797
A27: 797 | D27: 816
A28: 792 | D28: 804
A29: 799 | D29: 811
A30: 799 | D30: 814
A31: 820 | D31: 806
A32: 803 | D32: 803
A33: 798 | D33: 799
A34: 805 | D34: 811
A35: 799 | D35: _810
A36: 820 | D36: 797
A37: 817
A38: 816
A39: 806
A40: 802
A41: 801
A42: 804
A43: 806
A44: 800
A45: 807
A46: 798
A47: 810
A48: 809
A49: 810
A50: 811
A51: 806
A52: 814
A53: 805
A54: 799
A55: 799
A56: 803
A57: 817
A58: 818
A59: 798
A60: 813
A61: 799
A62: 816
A63: 797
A64: 804
A65: 798
A66: 790
A67: 792
A68: 787
A69: 779
A70: 783
A71: 791
A72: 789
A73: 800
A74: 792
A75: 806
A76: 815
A77: 814
A78: 803
A79: 798
A80: 805
A81: 799
A82: 813
A83: 820
A84: 816
A85: 806
A86: 802
A87: 801
A88: 804
A89: 806
A90: 800
A91: 807
A92: 798
A93: 810
A94: 809
A95: 810
A96: 811
A97: 806
A98: 814
A99: 805
A100: 799
A101: 797
A102: 803
A103: 803
A104: 798
A105: 805
A106: 799
A107: 813
A108: 809
A109: 816
A110: 806
A111: 802
A112: 801
A113: 804
A114: 806
A115: 800
A116: 807
A117: 798
A118: 810
A119: 809
A120: 810
A121: 811
A122: 806
A123: 814
A124: 805
A125: 799
A126: 780
A127: 803
A128: 811
A129: 814
A130: 779
A131: 803
A132: 798
A133: 805
A134: 799
A135: 813
A136: 815
A137: 816
A138: 806
A139: 802
A140: 801
A141: 804
A142: 806
A143: 800
A144: 807
A145: 798
A146: 810
A147: 809
A148: 810
A149: 811
A150: 806
A151: 814
A152: 805
A153: 799
A154: 780
A155: 803
A156: 811
A157: 814
A158: 779
A159: 814
A160: 803
A161: 798
A162: 805
A163: 799
A164: 813
A165: 814
A166: 816
A167: 806
A168: 802
A169: 801
A170: 804
A171: 806
A172: 800
A173: 807
A174: 798
A175: 810
A176: 809
A177: 810
A178: 811
A179: 806
A180: 814
A181: 805
A182: 799
A183: 795
A184: 803
A185: 803
A186: 798
A187: 805
A188: 799
A189: 813
A190: 805
A191: 801
A192: 815
A193: 801
A194: 802
A195: 803
A196: 813
A197: 814
A198: 809
A199: 803
A200: 811
... 100 more rows

Sheet 30°C
A1: 915 | C1: taux de C02 en ppm pour une eau de mer à 30 °c
A2: 920 | I2: borne sup
A3: 930 | I3: de l'intervalle | J3: intervalle | K3: fréquence
A4: 934 | F4: population | G4: 300 | I4: 900 | J4: ]0;900] | K4: =FREQUENCY(A1:A300,I4:I12) -> 13
A5: 933 | F5: min | G5: =MIN(A1:A300) -> 898 | I5: 905 | J5: ]900;905] | K5: 31
A6: 932 | E6: 10 | F6: max | G6: =MAX(A1:A300) -> 937 | I6: 910 | J6: ]905;910] | K6: 33
A7: 899 | C7: liste générée | D7: 898 | F7: moyenne | G7: =AVERAGE(A1:A300) -> 916.98 | I7: 915 | J7: ]910;915] | K7: 56
A8: 907 | D8: 918 | F8: écart type | G8: =STDEV(A1:A300) -> 9.59373402 | I8: 920 | J8: ]915;920] | K8: 76
A9: 930 | D9: 914 | F9: incertitude | G9: =G8/300^0.5 -> 0.5538944919 | I9: 925 | J9: ]920;925] | K9: 30
A10: 910 | D10: 914 | I10: 930 | J10: ]925;930] | K10: 30
A11: 937 | D11: 905 | F11: échantillon | G11: 30 | I11: 935 | J11: ]930;935] | K11: 30
A12: 934 | D12: 919 | F12: min | G12: =MIN(D7:D36) -> 898 | I12: 940 | J12: ]935;940] | K12: 1
A13: 935 | D13: 935 | F13: max | G13: =MAX(D7:D36) -> 935
A14: 908 | D14: 914 | F14: moyenne me | G14: =AVERAGE(D7:D37) -> 918.2903226
A15: 909 | D15: 915 | F15: écart type σe | G15: =STDEV(D7:D36) -> 10.40253064
A16: 910 | D16: 923
A17: 924 | D17: 935 | F17: estimation | G17: ponctuelle | L17: intervalle de confiance | M17: confiance à 95%du taux moyen de CO2 en ppm donné par le capteur
A18: 914 | D18: 914 | F18: écart type
A19: 916 | D19: 931 | F19: population | G19: =G15*30^0.5/29^0.5 -> 10.58036456 | L19: [ | M19: =G7-1.96*G8/30^0.5 -> 913.5469264 | N19: ; | O19: =G7+1.96*G8/30^0.5 -> 920.4130736 | P19: ]
A20: 917 | D20: 914
A21: 915 | D21: 918
A22: 918 | D22: 914
A23: 918 | D23: 927
A24: 919 | D24: 924
A25: 917 | D25: 917
A26: 916 | D26: 924
A27: 925 | D27: 904
A28: 924 | D28: 899
A29: 923 | D29: 906
A30: 915 | D30: 930
A31: 915 | D31: 930
A32: 916 | D32: 915
A33: 928 | D33: 933
A34: 906 | D34: 903
A35: 914 | D35: 915
A36: 927 | D36: 927
A37: 914 | D37: 932
A38: 908
A39: 906
A40: 907
A41: 908
A42: 928
A43: 923
A44: 931
A45: 906
A46: 918
A47: 915
A48: 916
A49: 917
A50: 915
A51: 914
A52: 916
A53: 920
A54: 919
A55: 915
A56: 915
A57: 920
A58: 924
A59: 929
A60: 927
A61: 932
A62: 899
A63: 901
A64: 922
A65: 910
A66: 898
A67: 928
A68: 927
A69: 903
A70: 905
A71: 910
A72: 924
A73: 914
A74: 916
A75: 917
A76: 915
A77: 918
A78: 918
A79: 919
A80: 917
A81: 916
A82: 925
A83: 924
A84: 923
A85: 915
A86: 915
A87: 916
A88: 928
A89: 901
A90: 914
A91: 927
A92: 914
A93: 904
A94: 906
A95: 905
A96: 915
A97: 920
A98: 930
A99: 934
A100: 933
A101: 932
A102: 899
A103: 901
A104: 930
A105: 910
A106: 898
A107: 934
A108: 935
A109: 903
A110: 905
A111: 910
A112: 924
A113: 914
A114: 916
A115: 917
A116: 915
A117: 918
A118: 918
A119: 919
A120: 917
A121: 916
A122: 925
A123: 924
A124: 923
A125: 915
A126: 915
A127: 916
A128: 928
A129: 901
A130: 914
A131: 927
A132: 914
A133: 904
A134: 906
A135: 905
A136: 908
A137: 928
A138: 930
A139: 931
A140: 906
A141: 918
A142: 915
A143: 916
A144: 917
A145: 915
A146: 914
A147: 916
A148: 920
A149: 919
A150: 915
A151: 915
A152: 920
A153: 930
A154: 934
A155: 933
A156: 932
A157: 899
A158: 901
A159: 930
A160: 910
A161: 898
A162: 934
A163: 935
A164: 903
A165: 905
A166: 910
A167: 924
A168: 914
A169: 916
A170: 917
A171: 915
A172: 918
A173: 918
A174: 919
A175: 917
A176: 916
A177: 925
A178: 924
A179: 923
A180: 915
A181: 915
A182: 916
A183: 928
A184: 901
A185: 914
A186: 927
A187: 914
A188: 904
A189: 906
A190: 905
A191: 932
A192: 899
A193: 901
A194: 923
A195: 910
A196: 898
A197: 934
A198: 935
A199: 903
A200: 905
... 114 more rows

Sheet régression linéaire
A1: température en °c de la mer | B1: Taux de CO2 moyen en pmm à la surface de la mer
A2: 12 | B2: 410
A3: 15 | B3: 444
A4: 18 | B4: 581
A5: 20 | B5: 679
A6: 24 | B6: 803
A7: 30 | B7: 917
